bitfinex/quotes_SOLUSD_20240808
["timestamp","ask_amount","ask_price","bid_price","bid_amount"]
[1723156115311,34.08,158.81,158.79,0.8230268]
[1723156115539,6.2972,158.8,158.79,0.8230268]
[1723156117926,7.87176147,158.8,158.79,0.8230268]
[1723156118130,27.87176147,158.8,158.79,0.8230268]
[1723156118438,6.2985,158.77,158.72,15.7504]
[1723156118627,34.08,158.78,158.72,22.0507]
[1723156118808,20.0,158.77,158.72,15.7504]
[1723156119325,20.0,158.77,158.73,1.25977611]
[1723156119712,34.08,158.78,158.73,51.2999]
[1723156119914,40.3781,158.78,158.73,51.2999]
[1723156120115,34.08,158.76,158.73,45.0]
[1723156121021,34.08,158.76,158.73,51.2999]
[1723156121428,34.08,158.76,158.73,45.0]
[1723156121751,6.2968,158.81,158.75,15.7479]
[1723156121927,40.3763,158.83,158.76,46.2595917]
[1723156122244,34.08,158.81,158.76,45.0]
[1723156122449,34.08,158.79,158.74,6.2995]
[1723156122649,40.3752,158.85,158.79,6.2972]
[1723156123018,6.2949,158.86,158.8,51.2972]
[1723156123830,6.2949,158.86,158.81,7.55579533]
[1723156124023,34.08,158.87,158.81,1.25919533]
[1723156124231,6.2957,158.84,158.8,60.7428]
[1723156124429,6.296,158.83,158.8,45.0]
[1723156124620,6.296,158.83,158.79,45.0]
[1723156124821,6.2965,158.82,158.79,45.0]
[1723156125016,34.08,158.83,158.76,22.2797]
[1723156125224,40.3768,158.81,158.76,28.5785]
[1723156125440,20.0,158.82,158.76,22.2797]
[1723156125642,6.2948,158.86,158.8,6.2968]
[1723156125849,6.2948,158.86,158.77,34.08]
[1723156125850,40.3744,158.87,158.81,17.00119629]
[1723156126027,6.2948,158.86,158.81,22.0383]
[1723156126228,6.2952,158.85,158.81,15.7419]
[1723156126751,6.2957,158.84,158.79,6.2975]
[1723156126928,40.3752,158.85,158.8,45.0]
[1723156127127,34.08,158.85,158.8,45.0]
[1723156127316,34.08,158.85,158.79,45.0]
[1723156127851,34.08,158.89,158.8,1.25923444]
[1723156128054,34.08,158.93,158.83,34.08]
[1723156128222,34.08,158.93,158.87,6.2943]
[1723156128223,40.3721,158.93,158.87,6.2943]
[1723156128533,40.3721,158.93,158.88,6.2939]
[1723156129042,34.08,158.97,158.88,15.7343]
[1723156129244,6.2914,158.95,158.9,6.2932]
[1723156129823,6.2918,158.94,158.89,45.0]
[1723156130029,6.292,158.93,158.89,45.0]
[1723156130319,6.292,158.93,158.85,6.2831]
[1723156130320,6.2937,158.89,158.85,6.2831]
[1723156130522,34.08,158.89,158.81,21.9189]
[1723156130725,34.08,158.96,158.81,28.2156]
[1723156130726,40.3747,158.87,158.81,28.2156]
[1723156130925,20.0,158.86,158.81,28.2156]
[1723156131249,20.0,158.86,158.82,15.741]
[1723156131431,20.0,158.88,158.83,6.2959]
[1723156131836,20.0,158.88,158.82,15.741]
[1723156132228,34.08,158.87,158.81,21.9189]
[1723156132429,6.2954,158.85,158.81,21.9189]
[1723156132961,34.08,158.85,158.78,15.744]
[1723156133333,6.296,158.84,158.78,15.744]
[1723156133532,6.296,158.84,158.78,22.0419]
[1723156134251,6.2961,158.83,158.78,22.0419]
[1723156134629,34.08,158.85,158.78,15.744]
[1723156135042,43.94887261,158.87,158.78,15.744]
[1723156135345,43.94887261,158.87,158.79,34.08]
[1723156135346,26.2948,158.86,158.79,34.08]
[1723156135544,26.2948,158.86,158.8,45.0]
[1723156135863,1.57402136,158.85,158.8,45.0]
[1723156136065,6.2958,158.84,158.79,45.0]
[1723156137154,6.2953,158.85,158.79,51.2973]
[1723156137340,6.2956,158.84,158.79,51.2973]
[1723156138662,6.2963,158.83,158.79,45.0]
[1723156139033,40.3756,158.85,158.79,51.2976]
[1723156140458,6.2956,158.85,158.8,6.2971]
[1723156140636,26.2948,158.86,158.81,45.0]
[1723156140836,6.2954,158.85,158.81,45.0]
[1723156141063,20.0,158.86,158.79,22.0414]
[1723156141234,6.296,158.83,158.77,12.6394]
[1723156141553,6.2965,158.82,158.78,45.0]
[1723156141744,20.0,158.86,158.81,6.2966]
[1723156142131,34.08,158.89,158.83,6.2959]
[1723156142333,34.08,158.89,158.79,34.08]
[1723156142554,34.08,158.89,158.8,45.0]
[1723156143156,6.2949,158.86,158.81,6.2965]
[1723156143458,6.2944,158.87,158.82,51.2963]
[1723156143834,6.2941,158.88,158.83,6.296]
[1723156144064,20.0,158.87,158.83,6.296]
[1723156145355,26.2944,158.87,158.82,68.29566181]
[1723156146367,20.0,158.87,158.84,6.2955]
[1723156146566,9.86801882,158.95,158.86,6.131]
[1723156146769,34.08,158.97,158.9,15.7329]
[1723156147151,6.2909,158.96,158.91,6.2925]
[1723156147357,6.2909,158.96,158.92,45.0]
[1723156147557,34.08,158.99,158.92,45.0]
[1723156147868,34.08,158.95,158.86,6.131]
[1723156148076,34.08,158.95,158.87,45.0]
[1723156148077,6.2928,158.92,158.87,45.0]
[1723156148367,34.08,158.93,158.87,45.0]
[1723156148538,6.2945,158.87,158.82,21.8715]
[1723156148739,6.2951,158.86,158.82,6.131]
[1723156148938,6.2948,158.86,158.82,6.131]
[1723156149173,34.08,158.89,158.82,6.131]
[1723156149344,20.0,158.88,158.82,6.131]
[1723156149545,6.2948,158.87,158.82,6.131]
[1723156150670,15.7329,158.91,158.86,6.2947]
[1723156150671,6.2932,158.91,158.86,6.2947]
[1723156150970,6.2932,158.91,158.87,45.0]
[1723156151174,34.08,158.91,158.82,6.131]
[1723156151469,6.294,158.88,158.83,51.2956]
[1723156151670,6.2937,158.89,158.84,6.2956]
[1723156151872,6.2933,158.9,158.85,45.0]
[1723156152761,34.08,158.91,158.82,21.872]
[1723156153067,6.2952,158.86,158.82,6.131]
[1723156153861,34.08,158.91,158.81,49.4978]
[1723156153862,6.2952,158.85,158.81,21.7144]
[1723156154045,6.2956,158.84,158.81,15.4178]
[1723156154241,6.2956,158.84,158.79,22.0414]
[1723156154453,6.2953,158.85,158.8,6.2971]
[1723156155065,6.2947,158.87,158.81,6.2966]
[1723156155273,6.294,158.88,158.81,49.8214]
[1723156155468,20.0,158.87,158.81,49.8214]
[1723156155663,20.0,158.87,158.84,6.2955]
[1723156155874,20.0,158.87,158.81,49.8214]
[1723156156063,6.2972,158.8,158.78,6.2777]
[1723156156267,34.08,158.85,158.78,6.2777]
[1723156156462,6.2965,158.82,158.78,6.2777]
[1723156156657,6.2957,158.84,158.79,7.55663759]
[1723156156866,34.08,158.87,158.79,7.55663759]
[1723156156867,6.2953,158.85,158.8,6.2971]
[1723156157175,20.0,158.84,158.8,6.2971]
[1723156157709,26.2957,158.84,158.79,6.2975]
[1723156157879,6.296,158.83,158.8,45.0]
[1723156158378,6.296,158.83,158.78,12.5756]
[1723156158875,6.2964,158.82,158.78,12.5756]
[1723156159069,6.2964,158.82,158.78,6.2777]
[1723156159265,6.2961,158.83,158.79,6.2976]
[1723156159465,20.0,158.84,158.8,6.2972]
[1723156159773,6.2955,158.85,158.8,6.2972]
[1723156159975,20.0,158.84,158.8,6.2972]
[1723156160181,26.2957,158.84,158.8,6.2972]
[1723156160356,20.0,158.84,158.8,6.2972]
[1723156160556,20.0,158.86,158.8,7.55646156]
[1723156161064,6.2957,158.84,158.8,1.25926156]
[1723156161381,6.2961,158.83,158.8,45.0]
[1723156161581,6.2961,158.83,158.79,45.0]
[1723156161761,6.2961,158.83,158.79,71.67]
[1723156161963,32.9654,158.85,158.8,34.22646996]
[1723156162162,32.9654,158.85,158.81,45.0]
[1723156162163,20.0,158.84,158.81,45.0]
[1723156163692,6.2961,158.83,158.81,45.0]
[1723156163981,6.2965,158.82,158.78,39.2456]
[1723156164181,6.2965,158.82,158.79,45.0]
[1723156164765,32.9661,158.83,158.79,45.0]
[1723156165163,6.2961,158.83,158.79,45.0]
[1723156165482,32.9661,158.83,158.79,45.0]
[1723156165879,6.2964,158.82,158.79,45.0]
[1723156166868,32.9661,158.83,158.79,45.0]
[1723156167177,20.0,158.84,158.8,34.22644597]
[1723156167365,26.67,158.85,158.81,45.0]
[1723156167571,26.67,158.85,158.81,51.2965]
[1723156167878,32.9652,158.85,158.81,51.2965]
[1723156168083,6.2964,158.82,158.78,6.2777]
[1723156168285,32.9664,158.82,158.78,6.2777]
[1723156168466,26.67,158.83,158.78,32.9477]
[1723156168786,32.9661,158.83,158.78,39.2456]
[1723156169084,26.67,158.83,158.78,48.6919]
[1723156169277,26.67,158.84,158.79,26.67]
[1723156169583,26.67,158.84,158.8,45.0]
[1723156169784,26.67,158.84,158.8,51.2969]
[1723156169976,32.9655,158.85,158.81,6.2968]
[1723156170174,32.9655,158.85,158.82,45.0]
[1723156171276,32.9655,158.85,158.81,45.0]
[1723156171887,32.9667,158.82,158.78,28.3198]
[1723156172083,26.67,158.83,158.79,6.2976]
[1723156172381,26.67,158.84,158.8,6.2971]
[1723156172786,26.67,158.84,158.8,1.25922563]
[1723156173486,15.4196,158.94,158.83,6.2958]
[1723156173487,26.67,158.87,158.83,6.2958]
[1723156173688,26.67,158.87,158.83,7.55486486]
[1723156174593,32.9644,158.87,158.83,7.55486486]
[1723156175164,32.9644,158.87,158.83,6.2958]
[1723156175390,32.9644,158.87,158.84,45.0]
[1723156175594,26.67,158.86,158.84,45.0]
[1723156175974,26.67,158.86,158.8,32.9671]
[1723156176160,15.7347,158.89,158.79,42.4139]
[1723156176161,26.67,158.85,158.79,42.4139]
[1723156176365,26.67,158.84,158.8,45.0]
[1723156176668,32.9657,158.84,158.8,45.0]
[1723156176972,26.67,158.87,158.83,6.2959]
[1723156177193,20.0,158.86,158.83,6.2959]
[1723156177569,20.0,158.86,158.82,6.2964]
[1723156177768,20.0,158.86,158.83,45.0]
[1723156178486,46.67,158.86,158.83,45.0]
[1723156179392,26.67,158.84,158.83,45.0]
[1723156179576,26.67,158.84,158.78,32.9477]
[1723156179777,26.67,158.83,158.79,45.0]
[1723156179996,26.67,158.83,158.79,51.2975]
[1723156180797,32.9662,158.83,158.79,45.0]
[1723156181109,32.9662,158.83,158.78,6.2777]
[1723156181110,26.67,158.83,158.78,12.5756]
[1723156181398,26.67,158.82,158.78,12.5756]
[1723156182496,26.67,158.82,158.79,6.2975]
[1723156182791,26.67,158.83,158.8,51.2972]
[1723156183190,26.67,158.82,158.79,6.2975]
[1723156183496,26.67,158.82,158.78,6.2777]
[1723156183497,26.67,158.82,158.78,12.5756]
[1723156183669,26.67,158.82,158.79,45.0]
[1723156185580,26.67,158.8,158.77,31.4455]
[1723156186199,26.67,158.81,158.77,31.4455]
[1723156186407,20.0,158.86,158.79,42.4132]
[1723156186408,26.67,158.84,158.79,42.4132]
[1723156186699,26.67,158.84,158.8,1.25924436]
[1723156186873,26.67,158.85,158.82,6.2964]
[1723156189788,26.67,158.87,158.83,52.55496589]
[1723156189985,26.67,158.87,158.84,6.2955]
[1723156190186,26.67,158.89,158.85,51.2951]
[1723156191096,26.67,158.9,158.86,1.25888833]
[1723156191288,26.67,158.9,158.87,6.2943]
[1723156191697,26.67,158.89,158.86,6.2947]
[1723156192003,2.54470368,158.94,158.85,45.0]
[1723156192198,26.67,158.86,158.83,6.2957]
[1723156192380,26.67,158.86,158.84,45.0]
[1723156192899,26.67,158.85,158.82,6.2963]
[1723156193412,26.67,158.83,158.8,6.2971]
[1723156193586,26.67,158.83,158.79,6.2975]
[1723156194397,32.9657,158.84,158.8,6.2971]
[1723156194892,26.67,158.83,158.81,45.0]
[1723156195780,28.84697436,158.95,158.82,26.67]
[1723156196001,28.84697436,158.95,158.81,45.0]
[1723156196002,26.67,158.92,158.86,26.67]
[1723156196290,26.67,158.93,158.87,26.67]
[1723156196682,6.2928,158.91,158.87,26.67]
[1723156196883,6.2928,158.91,158.86,15.7368]
[1723156196884,6.2928,158.91,158.86,42.4068]
[1723156197290,6.2928,158.91,158.86,48.7013]
[1723156199330,32.9628,158.91,158.86,48.7013]
[1723156199620,32.9625,158.92,158.87,77.9643]
[1723156199786,20.0,158.91,158.87,77.9643]
[1723156199986,20.0,158.91,158.88,34.22264364]
[1723156200207,6.2921,158.93,158.88,34.22264364]
[1723156200396,20.0,158.92,158.88,34.22264364]
[1723156200603,26.2926,158.92,158.88,1.25874364]
[1723156200801,26.2926,158.92,158.87,79.22296514]
[1723156201000,26.67,158.94,158.88,42.4044]
[1723156201324,26.67,158.95,158.9,26.67]
[1723156201491,32.9613,158.95,158.9,34.22162018]
[1723156202402,26.67,158.95,158.91,6.2927]
[1723156202739,26.67,158.97,158.93,6.2919]
[1723156202893,26.67,158.98,158.94,52.54970441]
[1723156203086,26.67,158.96,158.91,6.2927]
[1723156203293,26.67,158.95,158.92,45.0]
[1723156203488,26.67,158.97,158.93,1.25833978]
[1723156203693,26.67,158.98,158.95,6.2912]
[1723156203909,26.67,158.98,158.94,6.2915]
[1723156204413,26.67,158.96,158.93,15.7296]
[1723156204600,26.67,158.96,158.93,22.0216]
[1723156204806,26.67,158.97,158.93,22.0216]
[1723156205312,32.9602,158.98,158.94,51.2916]
[1723156205515,26.67,158.98,158.94,51.2916]
[1723156206602,9.86249462,159.03,158.97,6.2902]
[1723156206805,32.9592,159.01,158.96,7.54882202]
[1723156207011,26.67,159.0,158.97,45.0]
[1723156207315,26.67,159.01,158.97,45.0]
[1723156207526,26.67,159.04,158.98,27.92789951]
[1723156207827,26.67,159.04,158.99,45.0]
[1723156207828,26.67,159.03,158.99,45.0]
[1723156208123,26.67,159.02,158.99,45.0]
[1723156208326,6.2877,159.04,158.99,6.2893]
[1723156208488,26.67,159.03,158.99,6.2893]
[1723156209297,26.67,159.03,159.0,7.54696605]
[1723156209499,26.67,159.04,159.01,6.2888]
[1723156210936,6.2881,159.03,158.99,15.7236]
[1723156211230,6.2881,159.03,158.98,71.67]
[1723156211231,26.67,159.0,158.9,26.67]
[1723156211467,26.67,158.94,158.89,49.7]
[1723156211726,26.67,158.95,158.89,49.7]
[1723156212303,26.67,158.94,158.9,15.7323]
[1723156212704,26.67,158.95,158.92,6.2924]
[1723156213019,26.67,158.94,158.92,6.2924]
[1723156213327,26.67,158.95,158.92,6.2924]
[1723156213634,26.67,158.94,158.91,6.2928]
[1723156213793,26.67,158.92,158.89,23.03]
[1723156214002,32.9633,158.9,158.85,28.379]
[1723156214639,26.67,158.9,158.86,6.2947]
[1723156215434,26.67,158.91,158.85,64.4912]
[1723156216227,26.67,158.89,158.85,15.7374]
[1723156216528,26.67,158.88,158.83,6.2957]
[1723156217110,26.67,158.88,158.84,15.7382]
[1723156217316,26.67,158.9,158.85,26.67]
[1723156217509,26.67,158.9,158.81,22.0838]
[1723156217510,26.67,158.91,158.86,27.92871175]
[1723156217737,26.67,158.92,158.86,26.67]
[1723156218025,26.67,158.91,158.89,6.2936]
[1723156218222,26.67,158.92,158.89,6.2936]
[1723156218409,26.67,158.94,158.9,46.25849849]
[1723156218731,31.9224,159.0,158.91,15.7313]
[1723156218732,26.67,158.95,158.91,15.7313]
[1723156219039,26.67,158.95,158.92,45.0]
[1723156219712,26.67,158.93,158.88,42.4051]
[1723156219919,26.67,158.93,158.89,45.0]
[1723156220120,6.2913,158.95,158.9,6.2928]
[1723156220327,32.9613,158.95,158.91,45.0]
[1723156220717,26.67,158.94,158.9,45.0]
[1723156220917,26.67,158.92,158.9,45.0]
[1723156221125,26.67,158.92,158.88,15.7351]
[1723156221126,26.67,158.92,158.89,45.0]
[1723156221316,26.67,158.91,158.85,26.67]
[1723156221633,26.67,158.9,158.86,45.0]
[1723156221842,46.67,158.9,158.86,6.2945]
[1723156222135,46.67,158.9,158.86,26.67]
[1723156222136,20.0,158.9,158.86,26.67]
[1723156222446,26.67,158.91,158.86,26.67]
[1723156222612,26.67,158.91,158.85,26.67]
[1723156223316,26.67,158.91,158.87,6.2943]
[1723156223531,26.67,158.89,158.85,6.2948]
[1723156223855,26.67,158.89,158.84,22.0337]
[1723156224342,32.964,158.89,158.84,22.0337]
[1723156224521,32.9641,158.88,158.84,15.7382]
[1723156224925,26.67,158.87,158.84,15.7382]
[1723156225148,32.9651,158.86,158.81,22.0381]
[1723156225444,32.9643,158.88,158.82,26.67]
[1723156225736,26.67,158.9,158.84,42.4091]
[1723156225919,20.0,158.89,158.84,42.4091]
[1723156226116,20.0,158.89,158.86,6.2945]
[1723156226423,26.67,158.92,158.87,15.736]
[1723156226622,26.67,158.89,158.84,26.67]
[1723156226938,6.2959,158.84,158.78,32.9678]
[1723156227229,26.67,158.85,158.82,6.2963]
[1723156227432,76.462,158.93,158.82,6.2963]
[1723156227433,26.67,158.88,158.85,6.2951]
[1723156228042,26.67,158.86,158.82,15.741]
[1723156228244,26.67,158.86,158.82,22.0373]
[1723156228404,26.67,158.86,158.78,15.7442]
[1723156228738,6.2933,158.9,158.84,6.2956]
[1723156228929,26.67,158.89,158.85,6.2951]
[1723156229144,6.2928,158.91,158.85,6.2951]
[1723156229145,26.67,158.88,158.85,6.2951]
[1723156229329,26.67,158.88,158.84,22.0344]
[1723156229535,26.67,158.88,158.84,15.739]
[1723156229722,26.67,158.87,158.84,15.739]
[1723156229923,26.67,158.86,158.82,6.2964]
[1723156230335,26.67,158.86,158.83,6.2959]
[1723156230850,26.67,158.85,158.8,22.039]
[1723156231042,26.67,158.84,158.8,22.039]
[1723156231758,26.67,158.84,158.8,15.7422]
[1723156231959,26.67,158.83,158.77,70.7085]
[1723156232121,6.2937,158.89,158.84,6.2956]
[1723156232324,26.67,158.85,158.8,15.7427]
[1723156232524,26.67,158.91,158.9,6.2929]
[1723156232729,6.2938,158.89,158.83,6.2959]
[1723156233054,6.2941,158.88,158.83,6.2959]
[1723156233235,26.67,158.87,158.83,6.2959]
[1723156233427,26.67,158.89,158.82,42.411]
[1723156233635,15.7932,158.94,158.82,42.411]
[1723156233636,26.67,158.9,158.85,6.2948]
[1723156233839,15.7932,158.94,158.84,6.2956]
[1723156233840,26.67,158.88,158.84,6.2956]
[1723156234160,15.7932,158.94,158.8,6.2972]
[1723156234161,26.67,158.85,158.8,6.2972]
[1723156234538,26.67,158.85,158.79,15.744]
[1723156234736,32.9652,158.85,158.8,6.297]
[1723156235142,26.67,158.86,158.8,26.67]
[1723156235329,26.67,158.86,158.73,20.0]
[1723156235330,26.67,158.88,158.82,26.67]
[1723156235532,26.67,158.87,158.83,60.7392]
[1723156235744,26.67,158.87,158.76,51.4936]
[1723156235745,26.67,158.86,158.8,48.71]
[1723156235950,26.67,158.86,158.81,51.2968]
[1723156236938,26.67,158.86,158.81,6.2968]
[1723156237155,26.67,158.87,158.81,26.67]
[1723156237370,26.67,158.87,158.83,15.74]
[1723156237858,26.67,158.87,158.84,6.2955]
[1723156238344,26.67,158.87,158.83,22.036]
[1723156238936,26.67,158.88,158.83,15.74]
[1723156239137,6.2931,158.91,158.83,15.74]
[1723156239138,26.67,158.91,158.85,26.67]
[1723156239356,26.67,158.94,158.89,15.7333]
[1723156239565,26.67,158.91,158.85,22.3319]
[1723156239864,1.57339929,158.93,158.86,45.0]
[1723156240043,6.2936,158.9,158.86,45.0]
[1723156240235,26.67,158.89,158.86,51.2947]
[1723156240440,26.67,158.9,158.86,45.0]
[1723156240758,26.67,158.9,158.86,6.2947]
[1723156241463,26.67,158.91,158.85,64.7397]
[1723156241680,26.67,158.91,158.86,45.0]
[1723156241965,26.67,158.91,158.87,6.2944]
[1723156242140,26.67,158.9,158.87,6.2944]
[1723156242542,26.67,158.9,158.86,51.2947]
[1723156243137,26.67,158.95,158.92,6.2923]
[1723156243368,21.9986,158.98,158.92,6.2923]
[1723156243369,26.67,158.96,158.92,6.2923]
[1723156243642,26.67,158.96,158.93,6.2919]
[1723156243839,26.67,158.96,158.92,6.2924]
[1723156244050,26.67,158.96,158.91,22.0242]
[1723156244252,15.7224,159.01,158.92,6.2922]
[1723156244253,26.67,158.95,158.92,6.2922]
[1723156244435,26.67,158.95,158.92,6.2924]
[1723156245084,26.67,158.95,158.91,22.0242]
[1723156245274,26.67,158.98,158.95,6.291]
[1723156245446,26.67,158.99,158.94,15.7289]
[1723156245642,26.67,158.99,158.94,16.98702884]
[1723156245946,6.2892,159.01,158.96,6.2908]
[1723156245947,26.67,159.0,158.96,6.2908]
[1723156246569,26.67,158.97,158.94,22.0202]
[1723156247039,37.50013836,159.04,158.94,22.0202]
[1723156247040,26.67,158.96,158.94,15.7289]
[1723156247241,26.67,158.98,158.94,22.0205]
[1723156248070,26.67,158.97,158.94,22.0205]
[1723156248867,26.67,158.96,158.94,15.7289]
[1723156249080,26.67,158.96,158.94,22.0203]
[1723156249275,37.50027937,159.04,158.95,6.2911]
[1723156249276,26.67,158.98,158.95,6.2911]
[1723156250378,26.67,158.97,158.95,6.2911]
[1723156250872,26.67,158.97,158.94,22.0205]
[1723156251045,26.67,158.98,158.94,22.0205]
[1723156251245,6.2893,159.0,158.95,6.2911]
[1723156251446,46.67,158.99,158.95,6.2911]
[1723156251668,20.0,158.99,158.96,6.2907]
[1723156253061,20.0,158.99,158.95,7.54926988]
[1723156253266,12.7583,159.08,159.03,6.288]
[1723156253448,26.67,159.07,159.02,26.67]
[1723156253642,26.67,159.07,159.02,32.9584]
[1723156253949,26.67,159.07,159.02,6.2884]
[1723156254150,26.67,159.07,159.02,32.9584]
[1723156254552,32.9565,159.07,159.02,32.9584]
[1723156254971,6.287,159.06,159.01,42.3913]
[1723156255176,26.67,159.07,159.01,42.3913]
[1723156255342,26.67,159.07,159.02,45.0]
[1723156255545,32.9564,159.08,159.02,71.67]
[1723156255769,6.285,159.11,159.07,26.67]
[1723156255943,6.2846,159.12,159.07,26.67]
[1723156256147,32.9546,159.12,159.07,27.92713583]
[1723156256349,32.9564,159.08,159.03,6.2877]
[1723156256873,15.7112,159.13,159.04,6.2875]
[1723156257077,32.9554,159.1,159.05,6.2872]
[1723156257245,26.67,159.11,159.06,45.0]
[1723156257753,26.67,159.11,159.06,71.67]
[1723156258557,26.67,159.11,159.07,6.2864]
[1723156258768,26.67,159.12,159.08,6.286]
[1723156259176,26.67,159.11,159.06,87.3866]
[1723156259488,26.67,159.11,159.06,60.7166]
[1723156259489,26.67,159.1,159.06,60.7166]
[1723156259863,26.67,159.09,159.04,26.67]
[1723156260052,26.67,159.09,159.05,6.2871]
[1723156260370,32.9554,159.1,159.05,32.9571]
[1723156261289,26.67,159.12,159.08,6.2861]
[1723156261465,6.2842,159.13,159.08,6.2861]
[1723156261466,26.67,159.13,159.09,6.2857]
[1723156261982,26.67,159.15,159.11,6.2849]
[1723156262160,32.9526,159.17,159.12,32.9545]
[1723156262487,32.9522,159.18,159.13,6.2838]
[1723156262653,32.9523,159.18,159.13,32.954]
[1723156262845,26.67,159.15,159.09,21.8899]
[1723156263087,0.8230268,159.19,159.11,26.67]
[1723156263255,26.67,159.18,159.14,6.2836]
[1723156263959,27.4930268,159.19,159.15,6.2833]
[1723156264282,27.4930268,159.19,159.13,48.6638]
[1723156264283,33.7749268,159.19,159.13,48.6638]
[1723156264453,26.67,159.15,159.12,45.0]
[1723156264655,26.67,159.14,159.12,45.0]
[1723156264855,26.67,159.14,159.1,15.7131]
[1723156265164,26.67,159.14,159.1,21.9983]
[1723156265356,26.67,159.16,159.1,42.3831]
[1723156265672,26.67,159.16,159.11,32.9545]
[1723156265847,26.67,159.15,159.11,6.2845]
[1723156266282,26.67,159.15,159.09,48.5599]
[1723156266283,0.8230268,159.19,159.13,42.3802]
[1723156266483,26.67,159.16,159.13,15.7102]
[1723156266699,26.67,159.15,159.11,6.2849]
[1723156266988,26.67,159.15,159.12,6.2845]
[1723156268360,26.67,159.13,159.07,15.7162]
[1723156268560,26.67,159.12,159.07,15.7162]
[1723156268763,2.39403574,159.19,159.07,15.7162]
[1723156268764,26.67,159.13,159.07,42.3862]
[1723156268969,26.67,159.13,159.1,6.2853]
[1723156269155,0.8230268,159.19,159.1,15.7129]
[1723156269376,26.67,159.16,159.11,27.92677413]
[1723156269757,26.67,159.16,159.12,66.9952]
[1723156269957,26.67,159.15,159.12,66.9952]
[1723156270366,26.67,159.15,159.12,60.7107]
[1723156270561,26.67,159.14,159.1,6.2853]
[1723156270761,26.67,159.14,159.09,15.7141]
[1723156271370,26.67,159.14,159.11,6.2849]
[1723156271571,6.2832,159.16,159.11,6.2849]
[1723156271572,26.67,159.15,159.11,6.2849]
[1723156271761,26.67,159.15,159.12,6.2845]
[1723156272162,26.67,159.18,159.12,26.67]
[1723156272374,26.67,159.18,159.14,6.2835]
[1723156272664,26.67,159.18,159.13,71.67]
[1723156272665,32.9522,159.18,159.13,51.2841]
[1723156273078,26.67,159.14,159.1,6.2852]
[1723156273792,26.67,159.15,159.11,51.2848]
[1723156274177,26.67,159.15,159.12,6.2844]
[1723156274388,26.67,159.14,159.11,51.2848]
[1723156274684,26.67,159.14,159.11,45.0]
[1723156275065,26.67,159.13,159.09,15.7137]
[1723156275262,32.9522,159.18,159.13,6.2841]
[1723156275477,0.8230268,159.19,159.14,26.67]
[1723156275997,7.1051268,159.19,159.14,32.9535]
[1723156276292,6.2822,159.18,159.14,26.67]
[1723156276477,33.7748268,159.19,159.14,32.9536]